bitfinex-derivatives/quotes_ETHF0:USTF0_20250501
["timestamp","ask_amount","ask_price","bid_price","bid_amount"]
[1746106514182,1.7387,1835.2,1834.1,3.2078]
[1746106514482,1.7387,1835.2,1834.7,1.0899]
[1746106514483,3.2078,1835.0,1834.7,1.0899]
[1746106514683,3.2078,1834.8,1834.7,1.08993]
[1746106514879,3.2078,1835.7,1835.0,2.72426]
[1746106515080,3.88551,1835.7,1835.2,3.2078]
[1746106515282,3.2078,1835.7,1835.2,3.2078]
[1746106515485,3.88551,1835.7,1835.2,3.2078]
[1746106515882,3.88551,1835.7,1835.1,43.52412]
[1746106515883,4.9465,1836.2,1835.9,1.08919]
[1746106516081,3.2078,1836.0,1835.2,3.2078]
[1746106516275,3.2078,1836.0,1835.3,2.72394]
[1746106516478,3.2078,1836.0,1835.9,1.08919]
[1746106516783,3.2078,1836.7,1836.1,1.0891]
[1746106516984,3.88551,1836.7,1836.2,3.2078]
[1746106517185,3.88551,1836.7,1836.3,40.8]
[1746106517482,3.2078,1836.4,1836.3,41.88898]
[1746106517683,3.2078,1836.4,1836.3,40.8]
[1746106517882,1.852,1836.6,1836.5,1.08886]
[1746106518083,3.2078,1836.8,1836.4,2.7223]
[1746106518276,3.2078,1836.5,1836.4,1.8114]
[1746106518480,3.2078,1836.5,1836.3,40.8]
[1746106518677,3.88551,1836.5,1836.3,40.8]
[1746106518877,0.67771,1836.5,1836.4,1.08892]
[1746106519284,3.2078,1836.8,1836.7,1.08874]
[1746106520177,3.2078,1837.4,1836.7,3.98587077]
[1746106520381,3.2078,1837.4,1837.2,1.0884]
[1746106520582,1.8022,1837.3,1836.5,3.5595]
[1746106520787,3.2078,1836.7,1836.6,1.0888]
[1746106521176,1.8022,1837.3,1837.0,1.08856]
[1746106521382,1.8022,1837.3,1837.2,1.08844]
[1746106521583,3.2078,1837.4,1837.3,1.08839]
[1746106522488,8.2078,1837.4,1836.5,15.78421]
[1746106522691,3.2078,1837.1,1837.0,1.08853]
[1746106523386,2.71996,1838.0,1837.4,1.0883]
[1746106523586,1.08828,1837.5,1837.1,1.8213]
[1746106523786,1.08844,1837.2,1836.8,3.2078]
[1746106523988,3.81102923,1837.5,1837.2,1.08844]
[1746106524294,4.29586,1837.9,1837.7,1.08813]
[1746106524490,3.2078,1837.9,1837.3,3.2078]
[1746106524794,3.81102923,1837.9,1837.4,5.92859]
[1746106525092,7.01882923,1837.9,1837.8,1.08809]
[1746106525287,4.42579,1838.4,1838.1,1.08786]
[1746106525288,3.2078,1838.3,1838.1,1.08786]
[1746106525491,3.2078,1838.3,1837.9,1.08798]
[1746106525687,4.9142,1838.2,1838.1,1.08791]
[1746106526086,8.72522923,1838.2,1838.1,1.08791]
[1746106526282,7.01882923,1838.2,1838.1,1.08791]
[1746106526592,3.2078,1839.0,1838.2,2.71964]
[1746106526793,7.01882923,1839.0,1838.5,3.2078]
[1746106527001,1.08756,1838.7,1838.6,40.8]
[1746106527406,5.43816,1838.6,1837.5,3.2078]
[1746106527609,1.08829,1837.5,1837.0,12.57139]
[1746106527801,3.2078,1837.6,1837.1,4.51913874]
[1746106527996,1.7447,1838.0,1837.5,3.2078]
[1746106528305,3.2078,1837.9,1837.8,1.08805]
[1746106528501,3.2078,1837.9,1837.1,0.03032874]
[1746106528704,3.2078,1837.5,1837.1,1.79792874]
[1746106528899,4.9525,1837.8,1837.5,1.08825]
[1746106529104,3.2078,1837.6,1837.4,1.08831]
[1746106529399,0.44467407,1837.5,1837.4,1.08833]
[1746106529600,0.44466853,1837.5,1837.2,2.72112]
[1746106529799,4.29595,1837.7,1837.5,1.08821]
[1746106529995,0.4446703,1837.6,1837.3,1.8595]
[1746106530200,4.29597,1837.7,1837.5,1.08821]
[1746106530401,0.44467275,1837.6,1837.5,1.08821]
[1746106530603,0.44467143,1837.6,1837.3,1.8595]
[1746106530802,3.2078,1837.7,1837.3,1.8595]
[1746106530998,3.2078,1837.7,1837.6,1.08821]
[1746106531400,1.08816,1837.7,1837.3,4.58046]
[1746106531711,1.08784,1838.3,1837.8,2.72022]
[1746106531901,1.53263212,1838.2,1837.9,5.024]
[1746106532106,4.74054951,1838.1,1837.9,2.90421]
[1746106532407,3.2078,1838.1,1837.9,2.90421]
[1746106532713,1.53275053,1838.0,1837.9,2.90423]
[1746106532905,0.44478053,1838.0,1837.9,2.90423]
[1746106533203,1.4072,1838.3,1838.2,1.08785]
[1746106533401,1.08757,1838.7,1838.5,1.08766]
[1746106533599,12.3498,1838.6,1837.1,0.03032874]
[1746106533905,1.08886,1836.5,1836.2,1.8162]
[1746106534106,3.2078,1836.3,1836.2,1.8162]
[1746106534306,3.2078,1836.3,1835.6,3.2078]
[1746106534508,3.2078,1836.3,1836.0,1.08915]
[1746106534703,3.2078,1836.3,1836.2,1.08904]
[1746106535007,3.2078,1836.6,1836.5,1.08884]
[1746106535215,3.2078,1836.9,1836.6,1.08879]
[1746106535413,3.2078,1836.9,1836.3,3.2078]
[1746106535414,4.29647,1836.9,1836.7,1.8007]
[1746106535607,3.2078,1836.8,1836.7,1.8007]
[1746106536206,3.2078,1836.8,1836.7,2.88944]
[1746106536409,3.2078,1836.9,1836.7,1.8007]
[1746106536611,3.2078,1837.0,1836.8,1.08863]
[1746106536903,3.2078,1837.0,1836.9,1.8007]
[1746106537103,3.2078,1837.0,1836.9,2.88932]
[1746106537302,6.06272,1837.3,1836.9,2.88932]
[1746106537502,3.2078,1837.4,1836.9,9.9447]
[1746106537705,3.2078,1837.4,1837.3,1.08839]
[1746106537906,3.2078,1837.5,1837.4,1.08832]
[1746106538208,3.2078,1837.5,1837.3,1.08835]
[1746106538409,3.2078,1837.5,1837.0,1.6791]
[1746106538712,3.2078,1837.3,1837.1,1.08849]
[1746106539008,4.2962,1837.3,1837.0,1.7467]
[1746106539203,3.2078,1837.1,1835.7,3.2078]
[1746106539407,3.2078,1835.9,1834.9,0.00132021]
[1746106539599,3.2078,1835.5,1835.0,43.52436]
[1746106539803,3.2078,1835.3,1835.2,1.08963]
[1746106539998,0.4112,1835.3,1835.2,1.08963]
[1746106540207,1.08912,1836.1,1835.8,1.08923]
[1746106540405,3.2078,1835.9,1835.6,8.505]
[1746106540610,3.2078,1835.7,1835.6,9.59439]
[1746106540808,3.2078,1835.8,1835.7,1.08933]
[1746106541002,3.2078,1835.8,1835.7,2.83603]
[1746106541202,3.65282146,1835.8,1835.7,2.83603]
[1746106541802,3.65265058,1835.8,1835.7,2.83603]
[1746106542510,0.44485058,1835.8,1835.7,2.83735021]
[1746106543013,3.2078,1835.9,1835.8,1.08927]
[1746106543205,3.65268132,1835.9,1835.8,1.08927]
[1746106544004,8.65268132,1835.9,1835.1,1.77192021]
[1746106544209,3.2078,1835.5,1835.2,40.8]
[1746106544407,0.44511504,1835.4,1835.3,1.08957]
[1746106544605,3.65399457,1835.4,1835.3,1.08957]
[1746106544911,3.65400468,1835.4,1835.3,1.09089021]
[1746106545108,0.44620468,1835.4,1835.3,6.09089021]
[1746106545302,0.44620468,1835.4,1835.3,41.89089021]
[1746106545502,3.65403241,1835.4,1835.3,40.8]
[1746106545709,4.09296757,1835.4,1835.3,40.8]
[1746106545904,4.09293678,1835.4,1835.3,1.08957]
[1746106546105,8.65403241,1835.4,1834.9,0.00132021]
[1746106546408,3.2078,1835.1,1834.9,1.08977]
[1746106546607,3.2078,1835.1,1834.1,0.00132021]
[1746106546608,3.17086331,1835.0,1834.1,0.00132021]
[1746106546811,3.2078,1834.8,1834.4,2.72527]
[1746106547012,3.2078,1834.8,1834.7,1.08993]
[1746106547212,4.09328751,1834.8,1834.5,40.8]
[1746106547510,3.2078,1834.6,1833.9,2.7259]
[1746106547702,1.09028,1834.1,1834.0,1.8079]
[1746106547900,0.8855113,1834.1,1833.9,1.09037]
[1746106548109,3.65414129,1834.0,1833.9,1.09037]
[1746106548309,3.2078,1834.0,1833.9,1.09037]
[1746106548512,3.65159413,1834.0,1833.9,1.0904]
[1746106548716,1.09046,1833.8,1833.7,0.34731588]
[1746106549010,3.65159413,1833.8,1833.7,0.34731588]
[1746106549215,9.08802264,1833.8,1833.2,0.00132021]
[1746106549417,3.2078,1833.3,1833.2,1.09214021]
[1746106549714,3.2078,1833.5,1832.9,2.72873021]
[1746106549920,3.2078,1833.9,1833.5,2.72661]
[1746106550213,3.2078,1834.4,1834.0,0.00132021]
[1746106550513,3.2078,1834.2,1834.1,1.09028]
[1746106550907,3.2078,1834.2,1834.0,1.09165021]
[1746106551218,3.2078,1834.2,1834.1,1.09028]
[1746106551618,3.2078,1834.9,1834.2,0.00132021]
[1746106551818,3.2078,1834.9,1834.4,0.00132021]
[1746106552015,3.2078,1834.7,1834.3,1.09017]
[1746106552210,3.2078,1834.7,1834.6,1.08995]
[1746106552516,3.2078,1834.7,1834.5,1.09002]
[1746106552717,3.2078,1834.7,1834.6,1.08999]
[1746106553915,3.2078,1835.0,1834.9,1.08981]
[1746106554217,3.2078,1835.0,1834.9,41.89113021]
[1746106554415,2.72761,1832.9,1832.0,17.72949824]
[1746106554621,3.2078,1832.4,1832.0,17.72949824]
[1746106554920,3.2078,1832.4,1832.3,40.8]
[1746106556318,3.2078,1832.4,1832.3,41.89136]
[1746106556617,3.2078,1832.6,1832.5,1.09124]
[1746106556818,3.2078,1833.8,1832.6,2.72791]
[1746106557017,3.2078,1833.9,1833.2,3.2078]
[1746106557220,3.2078,1833.6,1832.7,1.7713]
[1746106557518,1.09106,1832.8,1832.7,1.7713]
[1746106557709,3.2078,1832.8,1831.8,1.8]
[1746106557914,4.9418,1832.7,1831.8,1.8]
[1746106558114,1.09132,1832.4,1831.9,2.86286]
[1746106558322,1.734,1832.3,1832.0,1.09153]
[1746106558516,1.734,1832.3,1832.2,40.8]
[1746106558716,3.2078,1832.7,1832.2,44.0078]
[1746106558914,4.29893,1832.7,1832.2,41.89138]
[1746106559115,9.444,1833.6,1832.2,41.89138]
[1746106559116,9.444,1834.1,1832.3,2.7284]
[1746106559316,1.6748,1833.1,1832.3,1.7872]
[1746106559515,3.2078,1832.8,1832.6,1.09113]
[1746106559819,3.2078,1832.9,1832.6,1.09116]
[1746106560018,3.2078,1832.8,1832.3,1.7872]
[1746106560411,3.2078,1832.5,1832.2,40.8]
[1746106560612,3.2078,1832.4,1832.2,40.8]
[1746106560820,5.93626,1832.3,1831.3,3.2078]
[1746106561016,1.6748,1832.2,1831.9,3.2078]
[1746106561217,3.2078,1832.7,1831.6,3.2078]
[1746106561415,3.2078,1832.5,1831.7,12.929]
[1746106561622,3.2078,1832.7,1831.9,2.72899]
[1746106561823,3.2078,1832.6,1832.0,1.7872]
[1746106562124,3.2078,1832.7,1832.6,1.09118]
[1746106562523,3.2078,1833.0,1832.4,2.72815]
[1746106562718,1.737,1833.1,1832.9,1.091]
[1746106563025,3.2078,1833.0,1832.4,1.7561]
[1746106563319,1.737,1833.1,1832.9,1.091]
[1746106563526,3.2078,1833.1,1832.5,2.7281]
[1746106563722,13.9678,1833.9,1833.1,1.09088]
[1746106563723,1.737,1833.2,1833.1,1.09088]
[1746106564022,3.2078,1833.3,1833.2,1.09082]
[1746106564222,4.9448,1833.7,1833.4,1.09065]
[1746106564423,4.9448,1833.7,1833.2,1.7679]
[1746106564625,4.9448,1833.7,1833.6,1.09058]
[1746106564823,1.19940125,1834.0,1833.7,1.09047]
[1746106565026,3.2078,1833.7,1833.6,1.09053]
[1746106565216,3.2078,1833.9,1833.8,1.09043]
[1746106565520,3.2078,1833.9,1833.4,4.49458]
[1746106565521,4.29822,1833.9,1833.4,1.7679]
[1746106565730,4.29822,1833.9,1833.1,56.18093]
[1746106565925,3.2078,1830.6,1829.3,3.2078]
[1746106566222,3.2078,1829.6,1829.4,40.8]
[1746106566430,3.2078,1829.6,1829.5,10.4994195]
[1746106566723,4.30077,1829.6,1829.5,10.4994195]
[1746106566922,9.30077,1829.6,1829.5,10.4994195]
[1746106567119,3.2078,1829.6,1829.5,51.2994195]
[1746106567620,3.2078,1829.8,1829.5,56.2994195]
[1746106567822,3.2078,1829.8,1829.5,10.4994195]
[1746106568021,3.2078,1829.6,1829.5,10.4994195]
[1746106568220,3.2078,1829.6,1829.3,14.24734257]
[1746106568221,3.70652215,1829.6,1829.1,17.72949824]
[1746106568521,0.60804163,1829.5,1829.2,3.2078]
[1746106568721,0.60804163,1829.5,1829.4,1.09309]
[1746106568933,3.2078,1829.8,1829.4,3.2078]
[1746106569222,3.2078,1830.4,1829.7,3.2078]
[1746106569428,3.2078,1829.9,1829.4,3.2078]
[1746106569631,3.2078,1830.0,1829.5,3.2078]
[1746106569924,3.2078,1831.0,1829.9,3.2078]
[1746106570226,1.09228,1830.8,1830.0,2.8861]
[1746106570527,0.49672721,1830.7,1830.2,1.09261]
[1746106570725,0.49672721,1830.7,1830.2,1.09258]
[1746106570726,5.38242721,1830.7,1830.2,1.09258]
[1746106570929,0.49672721,1830.6,1830.0,1.7934]
[1746106571224,1.58914721,1830.6,1830.0,1.7934]
[1746106571425,3.2078,1830.1,1829.3,3.2078]
[1746106571625,3.2078,1829.8,1829.3,3.2078]
[1746106571822,0.49691449,1829.7,1829.2,1.7481]
[1746106572017,0.49691449,1829.7,1829.6,1.09297]
[1746106572223,3.2078,1830.6,1829.6,2.73239]
[1746106572419,1.8368,1830.7,1829.9,3.2078]
[1746106572420,3.2078,1830.3,1829.9,3.2078]
[1746106572630,5.0446,1830.7,1830.2,1.09258]
[1746106572923,0.49694624,1830.6,1830.2,1.09259]
[1746106573117,0.49694624,1830.6,1830.0,1.7481]
[1746106573118,0.49694624,1830.6,1830.3,1.09252]
[1746106573424,0.49694624,1830.6,1830.5,4.30023]
[1746106573629,67.391,1832.1,1830.5,4.30023]
[1746106573630,3.2078,1831.3,1830.6,2.73085]
[1746106573824,1.8368,1831.6,1830.7,5.93858]
[1746106574028,1.8368,1831.6,1830.8,40.8]
[1746106574223,1.8368,1831.6,1830.9,1.7481]
[1746106574531,3.2078,1832.1,1831.2,3.2078]
[1746106574728,4.9166,1832.1,1831.3,1.7322]
[1746106575029,3.2078,1831.9,1831.3,1.7322]
[1746106575231,3.2078,1831.8,1831.3,1.7322]
[1746106575429,3.2078,1831.9,1831.3,1.7322]
[1746106575642,3.2078,1831.9,1831.2,1.09199]
[1746106575643,3.2078,1831.4,1830.8,41.89221]
[1746106575830,3.2078,1831.0,1830.7,1.7322]
[1746106576024,3.2078,1830.9,1830.3,3.2078]
[1746106576227,3.2078,1831.3,1830.9,2.73048]
[1746106576532,1.09154,1832.0,1831.6,1.09175]
[1746106576731,3.2078,1831.7,1831.6,1.09177]
[1746106577032,1.7088,1831.9,1831.3,1.7322]
[1746106577328,1.7088,1831.9,1831.4,40.8]
[1746106577531,6.00822,1831.9,1831.5,1.09181]
[1746106577734,3.2078,1831.6,1831.4,40.8]
[1746106577927,1.7104,1831.5,1831.3,1.09194]
[1746106578127,3.2078,1831.5,1831.4,1.09187]
[1746106578329,3.2078,1831.5,1831.4,40.8]
[1746106578727,4.29963,1831.5,1831.4,40.8]
[1746106578931,1.09198,1831.3,1830.9,1.8114]
[1746106579132,1.7104,1831.4,1830.9,1.8114]
[1746106579332,4.9182,1831.2,1831.0,1.09211]
[1746106579531,4.9182,1831.2,1830.7,4.9428]
[1746106579733,4.9182,1831.2,1831.0,1.09208]
[1746106579935,4.9182,1831.2,1831.1,1.09207]
[1746106580638,4.9182,1831.2,1831.0,1.09211]
[1746106580828,4.2997,1831.4,1831.1,1.09204]
[1746106581033,3.2078,1831.4,1831.3,1.09195]
[1746106581331,3.2078,1831.4,1831.3,6.09195]
[1746106581633,5.1193,1832.0,1831.2,2.73004]
[1746106581930,1.09166,1831.8,1831.6,1.09172]
[1746106582231,3.2078,1831.7,1831.6,1.09177]
[1746106582535,3.00306,1832.0,1831.7,1.09169]
[1746106582925,1.09163,1831.9,1831.6,1.09173]
[1746106583130,3.2078,1831.8,1831.1,67.407]
[1746106583336,3.2078,1831.5,1831.4,1.09188]
[1746106583531,3.2078,1831.5,1831.3,1.09191]
[1746106583736,3.2078,1831.5,1831.4,1.09189]
[1746106584236,3.2078,1831.5,1831.4,41.89189]
[1746106584423,3.2078,1831.5,1831.4,46.89189]
[1746106584629,3.2078,1831.5,1831.4,41.89189]
[1746106585133,8.2078,1831.5,1830.9,1.8039]
[1746106585438,3.2078,1831.0,1830.7,3.5267]
[1746106585637,3.2078,1831.0,1830.9,1.09219]
[1746106585837,3.2078,1831.0,1830.8,40.8]
[1746106585838,1.09219,1830.9,1830.8,40.8]
[1746106586035,6.65362714,1831.0,1830.8,41.89225]
[1746106586238,0.49664714,1831.0,1830.9,1.09219]
[1746106586536,0.49664714,1831.0,1830.9,2.86459]
[1746106586739,0.49664714,1831.0,1830.9,1.09219]
[1746106587232,0.49664714,1831.0,1830.9,1.7724]
[1746106587438,3.70444714,1831.0,1830.8,40.8]
[1746106587634,0.49664714,1830.9,1830.8,40.8]
[1746106587933,0.49664714,1830.9,1830.8,41.89225]
[1746106588440,3.70444714,1830.9,1830.8,41.89225]
[1746106588735,3.2078,1831.5,1831.1,2.73016]
[1746106588933,3.2078,1831.5,1830.8,49.0078]
[1746106588934,3.2078,1831.6,1831.0,2.73033]
[1746106589133,5.0689,1831.8,1831.1,1.7724]
[1746106589435,3.2078,1831.8,1831.3,5.93767]
[1746106589636,4.29949,1831.8,1831.5,1.09181]
[1746106589835,3.2078,1831.8,1831.6,1.8442]
[1746106590037,1.09171,1831.7,1831.6,1.8442]
[1746106590238,0.43525923,1831.7,1830.9,3.7606]
[1746106590436,1.7686,1831.6,1831.2,1.8442]
[1746106590642,4.29952,1831.7,1831.5,1.09182]
[1746106590935,3.2078,1832.1,1831.4,5.93753]
[1746106591135,3.2078,1832.1,1831.6,5.93719]
[1746106591329,3.2078,1832.1,1831.7,1.8442]
[1746106591535,4.29929,1832.1,1831.9,1.09156]
[1746106591837,3.2078,1832.8,1832.0,2.72874]
[1746106592032,3.29509161,1832.7,1832.5,1.09122]
[1746106592338,1.09119,1832.6,1832.4,1.09129]
[1746106592532,3.2078,1832.8,1832.2,1.8442]
[1746106592731,3.55856183,1832.9,1832.8,1.09106]
[1746106592932,3.55856183,1832.9,1832.2,6.8442]
[1746106592933,3.55856183,1832.9,1832.3,2.72836]
[1746106593132,3.55856183,1832.8,1832.7,1.09112]
[1746106593332,3.55856183,1832.8,1832.7,40.8]
[1746106593538,6.76636183,1832.8,1832.7,40.8]
[1746106593734,4.64962183,1832.8,1832.7,40.8]
[1746106593936,11.76636183,1832.8,1831.9,5.0939]
[1746106594138,1.09142,1832.2,1832.1,1.8038]
[1746106594331,4.29918,1832.3,1832.1,2.89526]
[1746106594537,1.8771,1832.7,1832.1,1.8038]
[1746106594740,3.64411095,1832.6,1832.4,1.09128]
[1746106594932,3.55856183,1832.8,1832.7,1.09112]
[1746106595136,1.04192667,1833.1,1832.8,1.09106]
[1746106595334,1.04192667,1833.1,1833.0,1.09094]
[1746106595643,1.04192667,1833.1,1833.0,41.89094]
[1746106595848,1.04192667,1833.1,1833.0,43.81034]
[1746106596336,1.09074,1833.4,1833.1,1.09084]
[1746106596531,5.0051,1833.8,1833.2,1.9194]
[1746106596839,1.09048,1833.8,1833.2,1.9194]
[1746106597041,8.89610278,1833.9,1833.2,1.9194]
[1746106597342,8.89610278,1833.9,1833.8,1.09046]
[1746106597737,8.89610278,1833.9,1833.8,19.17526]
[1746106598042,8.89610278,1833.9,1833.8,51.76746]
[1746106598245,8.89610278,1833.9,1833.8,59.97526]
[1746106598839,5.97150278,1833.9,1833.8,59.97526]
[1746106599032,4.45180278,1833.9,1833.8,59.97526]
[1746106599233,3.2078,1834.8,1834.0,2.72559]
[1746106599437,5.0994,1834.9,1834.1,3.2078]
[1746106599745,3.2078,1834.9,1834.6,1.08987]
[1746106599944,3.2078,1835.2,1834.7,3.2078]
[1746106600341,14.69484618,1835.4,1834.8,1.9098]
[1746106600546,3.2078,1835.1,1834.6,9.877]
[1746106600744,3.2078,1835.3,1834.6,9.877]
[1746106601041,0.44438884,1835.2,1834.7,1.9098]
[1746106601240,1.08954,1835.2,1834.8,1.08974]
[1746106601435,1.8916,1835.3,1834.6,13.0848]
[1746106601643,3.2078,1835.1,1834.6,9.877]
[1746106601844,1.08977,1834.8,1834.5,67.374]
[1746106602045,6.08534,1835.0,1834.7,1.0898]
[1746106602246,1.7879,1835.3,1834.9,1.08968]
[1746106602447,1.08956,1835.2,1834.6,1.816]
[1746106602646,2.87738,1835.3,1834.6,4.54064]
[1746106602944,1.7879,1835.3,1835.0,41.8896]
[1746106603141,11.97132618,1835.4,1835.0,41.8896]
[1746106603142,3.2078,1835.4,1835.2,1.08952]
[1746106603447,3.2078,1835.4,1835.1,1.816]
[1746106603755,3.2078,1835.4,1835.0,40.8]
[1746106603948,3.2078,1835.4,1835.1,1.816]
[1746106604243,4.5104,1836.1,1835.5,1.08932]
[1746106604547,1.08927,1835.7,1835.4,1.0894]
[1746106604735,4.9812,1835.6,1835.4,1.0894]
[1746106605239,4.9812,1835.6,1835.1,1.816]
[1746106605240,3.2078,1835.6,1835.5,1.08934]
[1746106605445,1.08922,1835.8,1835.5,1.08931]
[1746106605641,2.86263,1835.7,1835.2,3.2078]
[1746106605841,1.7734,1835.7,1835.2,1.0895]
[1746106606037,1.08938,1835.5,1835.2,1.0895]
[1746106606244,1.08934,1835.6,1835.3,1.08946]
[1746106606439,4.29716,1835.5,1835.2,1.08948]
[1746106606646,1.08941,1835.4,1835.2,1.0895]
[1746106606849,1.7734,1835.6,1835.1,2.72396]
[1746106607048,1.7734,1835.6,1835.2,1.9452]
[1746106607246,3.2078,1835.7,1835.3,2.72364]
[1746106607446,3.2078,1835.7,1835.5,1.08929]
[1746106607642,3.2078,1835.7,1835.6,1.08928]
[1746106608542,3.2078,1835.7,1835.5,1.0893]
[1746106608742,3.2078,1835.7,1835.6,1.08928]
[1746106609045,3.2078,1835.7,1835.4,1.9452]
[1746106609346,3.2078,1835.7,1835.6,1.08928]
[1746106611649,8.2078,1835.7,1835.0,44.0078]
[1746106611847,4.29717,1835.5,1835.1,2.72396]
[1746106612048,2.0952,1835.4,1835.3,1.08946]
[1746106612252,3.2078,1835.8,1835.7,1.08922]
[1746106612548,2.0952,1835.9,1835.8,1.08917]
[1746106612749,3.2078,1836.2,1835.9,2.72269]
[1746106612944,2.0952,1836.3,1836.2,1.08893]
[1746106613451,3.2078,1836.5,1836.4,1.08881]
[1746106613752,3.2078,1836.5,1836.2,40.8]
[1746106613753,1.08882,1836.4,1836.2,41.88887]
[1746106613946,1.08887,1836.3,1836.2,40.8]
[1746106614147,1.9801,1836.4,1836.2,40.8]
[1746106614348,3.2078,1836.3,1836.2,41.88893]
[1746106614753,5.1879,1836.3,1836.2,41.88893]
[1746106614950,3.2078,1836.5,1836.2,40.8]
[1746106615151,3.06897,1836.3,1836.2,40.8]
[1746106615447,1.9801,1836.3,1835.9,9.324]
[1746106615654,1.9801,1836.3,1836.2,1.08893]
[1746106616355,1.9801,1836.3,1836.2,41.88893]
[1746106616748,3.2078,1836.5,1836.4,1.08881]
[1746106617149,3.2078,1836.5,1836.2,40.8]
[1746106617452,3.2078,1836.5,1836.2,42.7713]
[1746106617657,3.2078,1836.5,1836.4,1.08881]
[1746106618451,2.0776,1836.7,1836.6,1.08869]
[1746106618853,3.2078,1836.8,1836.7,1.08863]
[1746106619058,6.37377,1837.2,1836.9,1.08846]
[1746106619253,3.2078,1837.8,1837.0,67.246]
[1746106619451,2.0776,1838.0,1837.2,2.72071]
[1746106619653,2.0776,1837.7,1837.2,2.72071]
[1746106619857,3.2078,1838.1,1837.5,1.08814]
[1746106619858,5.92737,1838.1,1837.5,1.08814]
[1746106620045,3.2078,1837.9,1837.6,1.08808]
[1746106620246,2.71916,1838.4,1837.2,5.1791]
[1746106620247,2.1296,1837.8,1837.2,5.1791]
[1746106620452,2.1296,1837.8,1837.3,1.08825]
[1746106620453,1.08815,1837.6,1837.3,1.08825]
[1746106620759,2.1296,1837.5,1837.4,1.08822]
[1746106621254,2.1296,1837.5,1837.1,9.047]
[1746106621558,6.42556,1837.5,1837.4,40.8]
[1746106621754,3.21776,1837.5,1837.4,40.8]
[1746106621961,13.05782,1837.5,1836.6,9.044]
[1746106622160,3.2078,1837.3,1836.6,9.044]
[1746106622458,1.08842,1837.1,1836.7,40.8]
[1746106622656,2.1296,1837.0,1836.9,1.0885]
[1746106623159,7.339,1837.4,1837.2,1.08832]
[1746106623355,2.0756,1837.3,1836.8,2.72143]
[1746106623549,2.0756,1837.3,1837.2,1.08834]
[1746106624357,2.0756,1837.3,1837.1,1.08837]
[1746106624561,2.0756,1837.3,1836.9,5.2792]
[1746106624760,1.08841,1837.1,1836.9,3.2078]
[1746106625058,2.0756,1837.0,1836.8,1.08854]
[1746106625353,3.2078,1837.2,1836.7,40.8]
[1746106625558,3.16389,1837.3,1836.9,3.2078]
[1746106625760,3.16388,1837.3,1837.1,1.08838]
[1746106625961,2.0756,1837.3,1837.2,1.08834]
[1746106626153,2.0756,1837.3,1836.9,3.2078]
[1746106626459,1.52007528,1837.2,1837.0,1.08845]
[1746106626663,2.015,1837.1,1837.0,1.08845]
[1746106626854,3.10341,1837.1,1836.9,1.08849]
[1746106627055,2.015,1837.1,1836.9,1.08848]
[1746106627254,2.015,1837.1,1837.0,1.08845]
[1746106627462,2.015,1837.1,1836.7,46.1062]
[1746106627764,5.224,1837.4,1836.9,3.2078]
[1746106627956,1.08834,1837.2,1837.0,2.0984]
[1746106628168,3.2078,1837.2,1836.7,44.0078]
[1746106628359,2.44732862,1837.1,1836.7,44.0078]
[1746106628565,0.43232327,1837.0,1836.9,1.08851]
[1746106628758,1.08844,1837.1,1836.9,1.08846]
[1746106628951,5.2228,1837.3,1837.2,1.08834]
[1746106629158,5.65521952,1837.3,1837.2,1.08834]
[1746106629460,1.08837,1837.2,1837.0,1.08844]
[1746106629666,2.1295,1837.1,1837.0,1.08844]
[1746106631864,1.08804,1837.7,1837.5,1.08813]
[1746106632069,0.40453455,1837.6,1837.5,1.08813]
[1746106632362,4.29585,1837.7,1837.3,2.72068]
[1746106632567,1.08803,1837.8,1837.6,1.08807]
[1746106632963,5.3417,1838.1,1837.6,3.2078]
[1746106633160,1.9943,1838.5,1838.4,1.08763]
[1746106633363,3.2078,1838.6,1838.4,1.08763]
[1746106633364,5.2157,1839.0,1838.5,1.08757]
[1746106633663,5.2157,1839.0,1838.6,1.08748]
[1746106634059,5.2157,1839.0,1838.4,44.0078]
[1746106634267,3.2078,1838.8,1838.4,44.0078]
[1746106634572,2.0079,1839.0,1838.6,1.08746]
[1746106634967,5.2157,1839.0,1838.4,46.72684]
[1746106635277,5.2157,1839.0,1838.6,3.2078]
[1746106635468,3.2078,1839.0,1838.8,1.08737]
[1746106635671,3.2078,1839.3,1838.8,3.2078]
[1746106635867,3.2078,1839.3,1838.6,3.2078]
[1746106636567,3.2078,1839.3,1838.8,3.2078]
[1746106636768,3.2078,1839.3,1838.9,1.08733]
[1746106636965,3.2078,1839.3,1838.8,3.2078]
[1746106637164,3.2078,1839.3,1839.1,1.08719]
[1746106637373,3.2078,1839.3,1838.8,5.92623]
[1746106637570,3.2078,1839.6,1839.5,1.08694]
[1746106637765,3.2078,1839.6,1839.0,3.2078]
[1746106637965,3.2078,1839.6,1839.4,1.08702]
[1746106638265,3.2078,1839.6,1839.5,40.8]
[1746106639458,8.2078,1839.6,1839.2,3.2078]
[1746106639672,3.2078,1839.5,1839.0,3.2078]
[1746106639871,3.2078,1839.5,1838.5,2.3243]
[1746106639872,3.2078,1839.4,1838.8,1.08735]
[1746106640069,1.08715,1839.2,1839.1,40.8]
[1746106640366,1.08731,1839.0,1838.6,1.08749]
[1746106640566,1.08728,1839.0,1838.4,11.7108]
[1746106640764,3.2078,1838.8,1838.7,40.8]
[1746106641069,3.40865,1838.9,1838.7,40.8]
[1746106641270,2.3213,1838.9,1838.7,44.0078]